fUST/lending_fUST_20250610
["ID","MTS","AMOUNT","RATE_DAILY","PERIOD"]
[365240146,1749561035487,-460.0,0.00021095,4]
[365240147,1749561035497,-460.0,0.00021095,4]
[365240148,1749561035506,-460.0,0.00021095,4]
[365240149,1749561035516,-400.0,0.00021095,4]
[365240150,1749561035525,-460.0,0.00021095,4]
[365240151,1749561035535,-460.0,0.00021095,4]
[365240152,1749561035545,-430.0,0.00021095,4]
[365240153,1749561035555,-460.0,0.00021095,4]
[365240154,1749561035565,-440.0,0.00021095,4]
[365240155,1749561035574,-264.89659329,0.00021095,4]
[365240156,1749561035584,-734.77,0.00021095,4]
[365240157,1749561035595,-447.48818234,0.00021095,4]
[365240158,1749561035604,-460.0,0.00021095,4]
[365240159,1749561035613,-460.0,0.00021095,4]
[365240160,1749561035622,-430.0,0.00021095,4]
[365240161,1749561035632,-430.0,0.00021095,4]
[365240162,1749561035643,-460.0,0.00021095,4]
[365240163,1749561035652,-460.0,0.00021095,4]
[365240164,1749561035662,-429.97648742,0.00021095,4]
[365240165,1749561035671,-588.94,0.00021095,4]
[365240166,1749561035682,-460.0,0.00021095,4]
[365240167,1749561035692,-460.0,0.00021095,4]
[365240168,1749561035701,-450.0,0.00021095,4]
[365240169,1749561035712,-430.0,0.00021095,4]
[365240170,1749561035871,-460.0,0.00021095,4]
[365240171,1749561035882,-460.0,0.00021095,4]
[365240172,1749561035891,-264.56814957,0.00021095,4]
[365240173,1749561035901,-460.0,0.00021095,4]
[365240174,1749561035911,-440.0,0.00021095,4]
[365240175,1749561035921,-460.0,0.00021095,4]
[365240176,1749561035931,-460.0,0.00021095,4]
[365240177,1749561035940,-440.0,0.00021095,4]
[365240178,1749561035949,-440.0,0.00021095,4]
[365240179,1749561035958,-460.0,0.00021095,4]
[365240180,1749561035968,-801.41,0.00021095,4]
[365240181,1749561035978,-460.0,0.00021095,4]
[365240182,1749561035987,-1316.66,0.00021095,4]
[365240183,1749561035996,-440.0,0.00021095,4]
[365240184,1749561036006,-440.0,0.00021095,4]
[365240185,1749561036016,-460.0,0.00021095,4]
[365240186,1749561036024,-460.0,0.00021095,4]
[365240187,1749561036034,-1658.85,0.00021095,4]
[365240188,1749561036045,-460.0,0.00021095,4]
[365240189,1749561036054,-460.0,0.00021095,4]
[365240190,1749561036064,-533.32734191,0.00021095,4]
[365240191,1749561036073,-460.0,0.00021095,4]
[365240192,1749561036083,-460.0,0.00021095,4]
[365240193,1749561036093,-440.0,0.00021095,4]
[365240194,1749561036102,-1213.09,0.00021095,4]
[365240195,1749561036112,-460.0,0.00021095,4]
[365240196,1749561036125,-235.95680202,0.00021095,4]
[365240197,1749561036135,-440.0,0.00021095,4]
[365240198,1749561036145,-460.0,0.00021095,4]
[365240199,1749561036155,-460.0,0.00021095,4]
[365240200,1749561036165,-440.0,0.00021095,4]
[365240201,1749561036175,-460.0,0.00021095,4]
[365240202,1749561036184,-440.0,0.00021095,4]
[365240203,1749561036193,-500.0,0.00021095,4]
[365240204,1749561036204,-500.0,0.00021095,4]
[365240205,1749561036214,-500.0,0.00021095,4]
[365240206,1749561036223,-393.67905227,0.00021095,4]
[365240207,1749561036232,-500.0,0.00021095,4]
[365240208,1749561036242,-500.0,0.00021095,4]
[365240209,1749561036251,-500.0,0.00021095,4]
[365240210,1749561036261,-500.0,0.00021095,4]
[365240211,1749561036271,-460.0,0.00021095,4]
[365240212,1749561036280,-500.0,0.00021095,4]
[365240213,1749561036291,-500.0,0.00021095,4]
[365240214,1749561036300,-500.0,0.00021095,4]
[365240215,1749561036310,-500.0,0.00021095,4]
[365240216,1749561036320,-421.39593358,0.00021095,4]
[365240217,1749561036330,-460.0,0.00021095,4]
[365240218,1749561036339,-350.0,0.00021095,2]
[365240219,1749561036349,-514.93,0.00021095,4]
[365240220,1749561036359,-441.17309034,0.00021095,4]
[365240221,1749561036369,-500.0,0.00021095,4]
[365240222,1749561036378,-440.0,0.00021095,4]
[365240223,1749561036387,-460.0,0.00021095,4]
[365240224,1749561036397,-460.0,0.00021095,4]
[365240225,1749561036407,-1402.9,0.00021095,4]
[365240226,1749561036418,-440.0,0.00021095,4]
[365240227,1749561036427,-440.0,0.00021095,4]
[365240228,1749561036436,-460.0,0.00021095,4]
[365240229,1749561036445,-460.0,0.00021095,4]
[365240230,1749561036455,-460.0,0.00021095,4]
[365240231,1749561036465,-460.0,0.00021095,4]
[365240232,1749561036475,-460.0,0.00021095,4]
[365240233,1749561036484,-292.83713265,0.00021095,4]
[365240234,1749561036494,-413.48937036,0.00021095,4]
[365240235,1749561036503,-460.0,0.00021095,4]
[365240236,1749561036513,-460.0,0.00021095,4]
[365240237,1749561036523,-440.0,0.00021095,4]
[365240238,1749561036533,-460.0,0.00021095,4]
[365240239,1749561036543,-460.0,0.00021095,4]
[365240240,1749561036553,-460.0,0.00021095,4]
[365240241,1749561036562,-460.0,0.00021095,4]
[365240242,1749561036572,-460.0,0.00021095,4]
[365240243,1749561036582,-460.0,0.00021095,4]
[365240244,1749561036591,-460.0,0.00021095,4]
[365240245,1749561036601,-460.0,0.00021095,4]
[365240246,1749561036611,-460.0,0.00021095,4]
[365240247,1749561036620,-476.21,0.00021095,4]
[365240248,1749561036630,-460.0,0.00021095,4]
[365240249,1749561036640,-460.0,0.00021095,4]
[365240250,1749561036650,-565.65780778,0.00021095,4]
[365240251,1749561036660,-449.42430802,0.00021095,4]
[365240252,1749561036670,-430.0,0.00021095,4]
[365240253,1749561036679,-570.54,0.00021095,4]
[365240254,1749561036693,-433.39389982,0.00021095,4]
[365240255,1749561036703,-561.45078939,0.00021095,4]
[365240256,1749561036712,-462.2,0.00021095,4]
[365240257,1749561036722,-460.0,0.00021095,4]
[365240258,1749561036731,-460.0,0.00021095,4]
[365240259,1749561036741,-460.0,0.00021095,4]
[365240260,1749561036750,-448.04433401,0.00021095,4]
[365240261,1749561036759,-420.60112534,0.00021095,4]
[365240262,1749561036769,-2814.84,0.00021095,4]
[365240263,1749561036778,-230.38130445,0.00021095,4]
[365240264,1749561036787,-460.0,0.00021095,4]
[365240265,1749561036798,-460.0,0.00021095,4]
[365240266,1749561036807,-460.0,0.00021095,4]
[365240267,1749561036817,-1561.2,0.00021095,4]
[365240268,1749561036826,-460.0,0.00021095,4]
[365240269,1749561036836,-440.0,0.00021095,4]
[365240270,1749561036845,-460.0,0.00021095,4]
[365240271,1749561036854,-460.0,0.00021095,4]
[365240272,1749561036863,-460.0,0.00021095,4]
[365240273,1749561036873,-460.0,0.00021095,4]
[365240274,1749561036882,-440.0,0.00021095,4]
[365240275,1749561036891,-304.47709477,0.00021095,4]
[365240276,1749561036900,-460.0,0.00021095,4]
[365240277,1749561036909,-442.97853322,0.00021095,4]
[365240278,1749561036919,-460.0,0.00021095,4]
[365240279,1749561036928,-460.0,0.00021095,4]
[365240280,1749561036937,-460.0,0.00021095,4]
[365240281,1749561036946,-460.0,0.00021095,4]
[365240282,1749561036955,-305.61463678,0.00021095,4]
[365240283,1749561036964,-430.0,0.00021095,4]
[365240284,1749561036974,-440.0,0.00021095,4]
[365240285,1749561036983,-440.0,0.00021095,4]
[365240286,1749561036993,-460.0,0.00021095,4]
[365240287,1749561037002,-572.65,0.00021095,4]
[365240288,1749561037011,-460.0,0.00021095,4]
[365240289,1749561037021,-3102.55,0.00021095,4]
[365240290,1749561037032,-460.0,0.00021095,4]
[365240291,1749561037041,-460.0,0.00021095,4]
[365240292,1749561037051,-460.0,0.00021095,4]
[365240293,1749561037060,-440.0,0.00021095,4]
[365240294,1749561037070,-460.0,0.00021095,4]
[365240295,1749561037079,-440.0,0.00021095,4]
[365240296,1749561037088,-1032.23,0.00021095,4]
[365240297,1749561037097,-460.0,0.00021095,4]
[365240298,1749561037107,-460.0,0.00021095,4]
[365240299,1749561037117,-430.0,0.00021095,4]
[365240300,1749561037130,-460.0,0.00021095,4]
[365240301,1749561037143,-460.0,0.00021095,4]
[365240302,1749561037152,-460.0,0.00021095,4]
[365240303,1749561037162,-327.8100198,0.00021095,4]
[365240304,1749561037173,-460.0,0.00021095,4]
[365240305,1749561037182,-420.0,0.00021095,4]
[365240306,1749561037191,-460.0,0.00021095,4]
[365240307,1749561037201,-430.0,0.00021095,4]
[365240308,1749561037210,-460.0,0.00021095,4]
[365240309,1749561037219,-691.63,0.00021095,4]
[365240310,1749561037229,-430.4580242,0.00021095,4]
[365240311,1749561037238,-2508.23,0.00021095,4]
[365240312,1749561037252,-460.0,0.00021095,4]
[365240313,1749561037262,-460.0,0.00021095,4]
[365240314,1749561037272,-430.65324588,0.00021095,4]
[365240315,1749561037281,-460.0,0.00021095,4]
[365240316,1749561037291,-460.0,0.00021095,4]
[365240317,1749561037300,-303.3151138,0.00021095,4]
[365240318,1749561037309,-460.0,0.00021095,4]
[365240319,1749561037319,-1142.03,0.00021095,4]
[365240322,1749561037329,-420.0,0.00021095,4]
[365240324,1749561037341,-596.67677429,0.00021095,4]
[365240325,1749561037351,-460.0,0.00021095,4]
[365240326,1749561037360,-460.0,0.00021095,4]
[365240327,1749561037369,-764.17,0.00021095,4]
[365240328,1749561037379,-2970.71,0.00021095,4]
[365240329,1749561037388,-440.0,0.00021095,4]
[365240330,1749561037398,-460.0,0.00021095,4]
[365240331,1749561037407,-460.0,0.00021095,4]
[365240333,1749561037422,-440.0,0.00021095,4]
[365240334,1749561037432,-460.0,0.00021095,4]
[365240335,1749561037441,-407.46601245,0.00021095,4]
[365240336,1749561037450,-2964.47,0.00021095,4]
[365240337,1749561037459,-1685.96,0.00021095,4]
[365240338,1749561037468,-603.4,0.00021095,4]
[365240340,1749561037478,-460.0,0.00021095,4]
[365240341,1749561037487,-460.0,0.00021095,4]
[365240342,1749561037498,-460.0,0.00021095,4]
[365240343,1749561037507,-400.0,0.00021095,4]
[365240344,1749561037516,-440.0,0.00021095,4]
[365240345,1749561037526,-440.0,0.00021095,4]
[365240346,1749561037535,-741.45,0.00021095,2]
[365240347,1749561037546,-430.0,0.00021095,4]
[365240348,1749561037556,-460.0,0.00021095,4]
[365240349,1749561037566,-440.0,0.00021095,4]
[365240350,1749561037576,-460.0,0.00021095,4]
[365240352,1749561037586,-460.0,0.00021095,4]
[365240354,1749561037596,-460.0,0.00021095,4]
[365240355,1749561037606,-406.17873588,0.00021095,4]
[365240357,1749561037615,-440.0,0.00021095,4]
[365240359,1749561037625,-460.0,0.00021095,4]
[365240361,1749561037635,-460.0,0.00021095,4]
[365240363,1749561037644,-657.06,0.00021095,4]
[365240365,1749561037654,-460.0,0.00021095,4]
[365240366,1749561037664,-437.06,0.00021095,4]
[365240367,1749561037674,-393.11436093,0.00021095,4]
[365240368,1749561037684,-460.0,0.00021095,4]
[365240369,1749561037694,-460.0,0.00021095,4]
[365240370,1749561037704,-409.71813405,0.00021095,4]
[365240371,1749561037713,-460.0,0.00021095,4]
[365240372,1749561037723,-440.0,0.00021095,4]
[365240373,1749561037732,-460.0,0.00021095,4]
[365240374,1749561037742,-460.0,0.00021095,4]
[365240375,1749561037750,-1753.44,0.00021095,4]
[365240376,1749561037760,-460.0,0.00021095,4]
[365240377,1749561037769,-440.0,0.00021095,4]
[365240378,1749561037778,-440.0,0.00021095,4]
[365240379,1749561037787,-460.0,0.00021095,4]
[365240380,1749561037798,-460.0,0.00021095,4]
[365240381,1749561037808,-460.0,0.00021095,4]
[365240382,1749561037817,-2332.21,0.00021095,4]
[365240383,1749561037827,-460.0,0.00021095,4]
[365240384,1749561037837,-2899.63406676,0.00021132,2]
[365240385,1749561037847,-1047.60775708,0.00021176,4]
[365240386,1749561037857,-2899.63406676,0.00021269,2]
[365240387,1749561037866,-500.0,0.00021281,4]
[365240388,1749561037876,-500.0,0.00021282,4]
[365240389,1749561037886,-1047.60775708,0.00021314,5]
[365240390,1749561037895,-151.0,0.00021342,4]
[365240391,1749561037904,-151.0,0.00021342,4]
[365240392,1749561037914,-500.0,0.00021342,4]
[365240393,1749561037922,-500.0,0.00021342,4]
[365240394,1749561037931,-151.0,0.00021342,4]
[365240395,1749561037941,-151.0,0.00021342,4]
[365240397,1749561037951,-500.0,0.00021342,4]
[365240399,1749561037960,-151.0,0.00021342,4]
[365240401,1749561037970,-151.0,0.00021342,4]
[365240403,1749561037979,-151.0,0.00021342,4]
[365240405,1749561037988,-151.24666928,0.00021342,4]
[365240407,1749561037997,-151.0,0.00021342,4]
[365240409,1749561038006,-151.0,0.00021342,4]
[365240411,1749561038015,-151.0,0.00021342,2]
[365240413,1749561038025,-500.0,0.00021342,4]
[365240415,1749561038034,-16000.0,0.00021355,2]
[365240417,1749561038045,-11882.05682549,0.00021355,2]
[365240419,1749561038054,-156.89515289,0.00021355,2]
[365240421,1749561038064,-500.0,0.00021368,4]
[365240423,1749561038073,-506.56,0.00021368,4]
[365240425,1749561038083,-500.0,0.00021368,4]
[365240427,1749561038092,-404.65811754,0.00021368,4]
[365240429,1749561038103,-410.0,0.00021369,4]
[365240431,1749561038112,-496.23728154,0.00021369,4]
[365240433,1749561038124,-447.72008457,0.00021369,4]
[365240435,1749561038133,-460.0,0.00021369,4]
[365240437,1749561038143,-420.0,0.00021369,4]
[365240438,1749561038152,-410.0,0.00021369,4]
[365240439,1749561038162,-197.01137369,0.00021369,4]
[365240440,1749561038173,-460.0,0.00021369,4]
[365240441,1749561038182,-420.0,0.00021369,4]
[365240442,1749561038192,-420.0,0.00021369,4]
[365240443,1749561038203,-460.0,0.00021369,4]
[365240444,1749561038212,-420.0,0.00021369,4]
[365240445,1749561038221,-460.0,0.00021369,4]
[365240446,1749561038230,-420.0,0.00021369,4]
[365240447,1749561038239,-392.41481194,0.00021369,4]
[365240448,1749561038249,-420.0,0.00021369,4]
[365240449,1749561038259,-495.87810079,0.00021369,4]
[365240450,1749561038269,-420.0,0.00021369,4]
[365240451,1749561038278,-440.0,0.00021369,4]
[365240452,1749561038288,-420.0,0.00021369,4]
[365240453,1749561038300,-420.0,0.00021369,4]
[365240454,1749561038310,-420.0,0.00021369,4]
[365240455,1749561038319,-420.0,0.00021369,4]
[365240456,1749561038331,-460.0,0.00021369,4]
[365240457,1749561038340,-460.0,0.00021369,4]
[365240458,1749561038349,-420.0,0.00021369,4]
[365240459,1749561038359,-420.0,0.00021369,4]
[365240460,1749561038368,-420.0,0.00021369,4]
[365240461,1749561038378,-359.93495717,0.00021369,4]
[365240462,1749561038387,-420.0,0.00021369,4]
[365240463,1749561038396,-460.0,0.00021369,4]
[365240464,1749561038406,-417.78189297,0.00021369,4]
[365240465,1749561038415,-580.30031139,0.00021369,4]
[365240466,1749561038426,-420.0,0.00021369,4]
[365240467,1749561038435,-420.0,0.00021369,4]
[365240468,1749561038445,-420.0,0.00021369,4]
[365240469,1749561038455,-460.0,0.00021369,4]
[365240471,1749561038464,-410.0,0.00021369,4]
[365240472,1749561038474,-410.0,0.00021369,4]
[365240473,1749561038484,-377.08235146,0.00021369,4]
[365240475,1749561038494,-460.0,0.00021369,4]
[365240477,1749561038503,-460.0,0.00021369,4]
[365240479,1749561038513,-460.0,0.00021369,4]
[365240481,1749561038523,-460.0,0.00021369,4]
[365240483,1749561038532,-590.0,0.00021369,4]
[365240485,1749561038544,-400.0,0.00021369,4]
[365240487,1749561038558,-410.0,0.00021369,4]
[365240489,1749561038568,-460.0,0.00021369,4]
[365240491,1749561038578,-460.0,0.00021369,4]
[365240493,1749561038588,-460.0,0.00021369,4]
[365240495,1749561038598,-460.0,0.00021369,4]
[365240497,1749561038607,-548.64,0.00021369,4]
[365240499,1749561038617,-460.0,0.00021369,4]
[365240501,1749561038626,-460.0,0.00021369,4]
[365240503,1749561038635,-460.0,0.00021369,4]
[365240505,1749561038645,-460.0,0.00021369,4]
[365240507,1749561038654,-460.0,0.00021369,4]
[365240509,1749561038664,-460.0,0.00021369,4]
[365240511,1749561038674,-743.81,0.00021369,4]
[365240513,1749561038686,-460.0,0.00021369,4]
[365240514,1749561038695,-417.419172,0.00021369,4]
[365240516,1749561038704,-460.0,0.00021369,4]
[365240518,1749561038714,-410.0,0.00021369,4]
[365240519,1749561038723,-460.0,0.00021369,4]
[365240521,1749561038733,-468.19005141,0.00021369,4]
[365240523,1749561038742,-410.0,0.00021369,4]
[365240525,1749561038751,-460.0,0.00021369,4]
[365240526,1749561038760,-460.0,0.00021369,4]
[365240527,1749561038770,-460.0,0.00021369,4]
[365240528,1749561038779,-385.71881688,0.00021369,4]
[365240529,1749561038789,-460.0,0.00021369,4]
[365240530,1749561038799,-460.0,0.00021369,4]
[365240531,1749561038809,-400.0,0.00021369,4]
[365240532,1749561038818,-414.46125129,0.00021369,4]
[365240533,1749561038828,-460.0,0.00021369,4]
[365240534,1749561038837,-385.46675299,0.00021369,4]
[365240535,1749561038847,-401.19447688,0.00021369,4]
[365240536,1749561038856,-460.0,0.00021369,4]
[365240537,1749561038866,-460.0,0.00021369,4]
[365240538,1749561038875,-460.0,0.00021369,4]
[365240539,1749561038884,-410.0,0.00021369,4]
[365240540,1749561038893,-460.0,0.00021369,4]
[365240541,1749561038903,-460.0,0.00021369,4]
[365240542,1749561038912,-460.0,0.00021369,4]
[365240543,1749561038922,-410.0,0.00021369,4]
[365240544,1749561038931,-395.8222463,0.00021369,4]
[365240545,1749561038941,-460.0,0.00021369,4]
[365240546,1749561038950,-404.01435239,0.00021369,4]
[365240547,1749561038960,-410.0,0.00021369,4]
[365240548,1749561038969,-460.0,0.00021369,4]
[365240549,1749561038979,-460.0,0.00021369,4]
[365240550,1749561038988,-460.0,0.00021369,4]
[365240551,1749561038997,-460.0,0.00021369,4]
[365240552,1749561039006,-460.0,0.00021369,4]
[365240553,1749561039015,-410.0,0.00021369,4]
[365240554,1749561039025,-383.58672951,0.00021369,4]
[365240555,1749561039034,-460.0,0.00021369,4]
[365240556,1749561039043,-390.0,0.00021369,4]
[365240557,1749561039053,-460.0,0.00021369,4]
[365240558,1749561039063,-460.0,0.00021369,4]
[365240559,1749561039072,-448.09775941,0.00021369,4]
[365240560,1749561039081,-401.07859532,0.00021369,4]
[365240561,1749561039091,-460.0,0.00021369,4]
[365240562,1749561039100,-400.0,0.00021369,4]
[365240563,1749561039109,-460.0,0.00021369,4]
[365240564,1749561039119,-460.0,0.00021369,4]
[365240565,1749561039131,-460.0,0.00021369,4]
[365240566,1749561039140,-179.61656109,0.00021369,4]
[365240567,1749561039150,-266.44671503,0.00021369,4]
[365240568,1749561039160,-400.0,0.00021369,4]
[365240569,1749561039171,-583.60431757,0.00021369,4]
[365240570,1749561039181,-460.0,0.00021369,4]
[365240571,1749561039190,-400.0,0.00021369,4]
[365240572,1749561039200,-401.14370387,0.00021369,4]
[365240573,1749561039211,-331.18800078,0.00021369,4]
[365240574,1749561039221,-460.0,0.00021369,4]
[365240575,1749561039230,-460.0,0.00021369,4]
[365240576,1749561039239,-533.81898444,0.00021369,4]
[365240577,1749561039249,-460.0,0.00021369,4]
[365240578,1749561039258,-460.0,0.00021369,4]
[365240579,1749561039268,-460.0,0.00021369,4]
[365240580,1749561039277,-410.0,0.00021369,4]
[365240581,1749561039287,-460.0,0.00021369,4]
[365240582,1749561039297,-460.0,0.00021369,4]
[365240583,1749561039307,-460.0,0.00021369,4]
[365240584,1749561039316,-460.0,0.00021369,4]
[365240585,1749561039326,-460.0,0.00021369,4]
[365240586,1749561039336,-460.0,0.00021369,4]
[365240587,1749561039345,-460.0,0.00021369,4]
[365240588,1749561039355,-500.0,0.00021369,4]
[365240590,1749561039365,-402.0949607,0.00021369,4]
[365240591,1749561039374,-410.0,0.00021369,4]
[365240592,1749561039384,-460.0,0.00021369,4]
[365240593,1749561039393,-400.0,0.00021369,4]
[365240594,1749561039402,-400.0,0.00021369,4]
[365240595,1749561039412,-460.0,0.00021369,4]
[365240598,1749561039566,-460.0,0.00021369,4]
[365240599,1749561039578,-460.0,0.00021369,4]
[365240600,1749561039589,-460.0,0.00021369,4]
[365240601,1749561039599,-460.0,0.00021369,4]
[365240602,1749561039611,-460.0,0.00021369,4]
[365240603,1749561039622,-420.0,0.00021369,4]
[365240604,1749561039632,-460.0,0.00021369,4]
[365240605,1749561039642,-445.66784215,0.00021369,4]
[365240606,1749561039651,-460.0,0.00021369,4]
[365240607,1749561039660,-460.0,0.00021369,4]
[365240608,1749561039670,-538.18578969,0.00021369,4]
[365240609,1749561039680,-460.0,0.00021369,4]
[365240610,1749561039689,-460.0,0.00021369,4]
[365240611,1749561039699,-971.69,0.00021369,4]
[365240612,1749561039709,-556.97,0.00021369,4]
[365240613,1749561039719,-410.0,0.00021369,4]
[365240614,1749561039730,-460.0,0.00021369,4]
[365240615,1749561039739,-460.0,0.00021369,4]
[365240616,1749561039749,-460.0,0.00021369,4]
[365240617,1749561039759,-400.0,0.00021369,4]
[365240618,1749561039768,-460.0,0.00021369,4]
[365240619,1749561039780,-460.0,0.00021369,4]
[365240620,1749561039799,-460.0,0.00021369,4]
[365240621,1749561039809,-461.41742149,0.00021369,4]
[365240622,1749561039819,-414.92044058,0.00021369,4]
[365240623,1749561039830,-734.77,0.00021369,4]
[365240624,1749561039839,-350.13734886,0.00021369,4]
[365240625,1749561039849,-410.0,0.00021369,4]
[365240626,1749561039858,-460.0,0.00021369,4]
[365240627,1749561039868,-460.0,0.00021369,4]
[365240628,1749561039877,-460.0,0.00021369,4]
[365240629,1749561039887,-460.0,0.00021369,4]
[365240630,1749561039896,-460.0,0.00021369,4]
[365240631,1749561039905,-460.0,0.00021369,4]
[365240632,1749561039915,-460.0,0.00021369,4]
[365240633,1749561039924,-280.0,0.00021369,4]
[365240634,1749561039933,-589.56078833,0.00021369,4]
[365240635,1749561039943,-460.0,0.00021369,4]
[365240637,1749561039953,-801.41,0.00021369,4]
[365240638,1749561039968,-460.0,0.00021369,4]
[365240639,1749561039980,-1316.66,0.00021369,4]
[365240640,1749561039989,-460.0,0.00021369,4]
[365240641,1749561039998,-460.0,0.00021369,4]
[365240642,1749561040007,-1658.85,0.00021369,4]
[365240643,1749561040017,-460.0,0.00021369,4]
[365240644,1749561040026,-420.0,0.00021369,4]
[365240645,1749561040035,-460.0,0.00021369,4]
[365240646,1749561040046,-460.0,0.00021369,4]
[365240647,1749561040056,-1213.09,0.00021369,4]
[365240648,1749561040066,-460.0,0.00021369,4]
[365240649,1749561040075,-241.92,0.00021369,4]
[365240650,1749561040085,-460.0,0.00021369,4]
[365240651,1749561040095,-460.0,0.00021369,4]
[365240652,1749561040104,-460.0,0.00021369,4]
[365240653,1749561040114,-460.0,0.00021369,4]
[365240654,1749561040125,-350.0,0.00021369,2]
[365240655,1749561040143,-514.93,0.00021369,4]
[365240656,1749561040153,-500.0,0.00021369,4]
[365240657,1749561040163,-460.0,0.00021369,4]
[365240658,1749561040172,-1402.9,0.00021369,4]
[365240659,1749561040182,-460.0,0.00021369,4]
[365240660,1749561040191,-460.0,0.00021369,4]
[365240661,1749561040201,-460.0,0.00021369,4]
[365240662,1749561040211,-380.52654759,0.00021369,4]
[365240663,1749561040221,-460.0,0.00021369,4]
[365240664,1749561040231,-165.45516378,0.00021369,4]
[365240665,1749561040240,-460.0,0.00021369,4]
[365240666,1749561040249,-420.0,0.00021369,4]
[365240667,1749561040258,-460.0,0.00021369,4]
[365240668,1749561040270,-460.0,0.00021369,4]
[365240669,1749561040279,-460.0,0.00021369,4]
[365240670,1749561040288,-460.0,0.00021369,4]
[365240671,1749561040301,-460.0,0.00021369,4]
[365240672,1749561040310,-359.01557526,0.00021369,4]
[365240673,1749561040319,-460.0,0.00021369,4]
[365240674,1749561040329,-476.21,0.00021369,4]
[365240675,1749561040338,-400.0,0.00021369,4]
[365240676,1749561040347,-460.0,0.00021369,4]
[365240677,1749561040356,-460.0,0.00021369,4]
[365240678,1749561040366,-570.54,0.00021369,4]
[365240679,1749561040376,-462.2,0.00021369,4]
[365240680,1749561040385,-460.0,0.00021369,4]
[365240681,1749561040395,-460.0,0.00021369,4]
[365240682,1749561040405,-460.0,0.00021369,4]
[365240683,1749561040414,-2565.81818417,0.00021369,4]
[365240684,1749561040557,-249.02181583,0.00021369,4]
[365240685,1749561040567,-460.0,0.00021369,4]
[365240686,1749561040577,-460.0,0.00021369,4]
[365240687,1749561040587,-460.0,0.00021369,4]
[365240688,1749561040597,-1561.2,0.00021369,4]
[365240689,1749561040607,-410.0,0.00021369,4]
[365240690,1749561040616,-460.0,0.00021369,4]
[365240691,1749561040626,-460.0,0.00021369,4]
[365240692,1749561040635,-290.58618859,0.00021369,4]
[365240693,1749561040645,-460.0,0.00021369,4]
[365240694,1749561040655,-460.0,0.00021369,4]
[365240695,1749561040665,-390.0,0.00021369,4]
[365240696,1749561040676,-460.0,0.00021369,4]
[365240697,1749561040686,-460.0,0.00021369,4]
[365240698,1749561040695,-460.0,0.00021369,4]
[365240699,1749561040706,-246.01600023,0.00021369,4]
[365240700,1749561040715,-572.65,0.00021369,4]
[365240701,1749561040725,-460.0,0.00021369,4]
[365240702,1749561040734,-3102.55,0.00021369,4]
[365240703,1749561040744,-460.0,0.00021369,4]
[365240704,1749561040754,-460.0,0.00021369,4]
[365240705,1749561040764,-263.54288056,0.00021369,4]
[365240706,1749561040773,-253.39942478,0.00021369,4]
[365240707,1749561040782,-1032.23,0.00021369,4]
[365240708,1749561040792,-390.0,0.00021369,4]